[Event "FRA-ch Teams Top 16-B 2022"]
[Site "Chartres"]
[Date "2022.06.10"]
[Round "2.19"]
[White "Eugene, Floryan"]
[Black "Rakotomaharo, Fy Antenaina"]
[Result "0-1"]
[ECO "C51"]
[WhiteElo "2370"]
[BlackElo "2467"]
[Annotator "TA"]
[PlyCount "112"]
[EventDate "2022.06.09"]
[EventType "team-tourn"]
[EventCountry "FRA"]
[SourceTitle "playchess.com"]
[Source "ChessBase"]
[SourceQuality "1"]
[TimeControl "40/5400+30:1800+30"]

{[%evp 12,112,-11,-8,-8,0,0,0,0,0,0,-7,0,12,17,0,0,16,0,0,0,0,0,0,31,29,32,44,42,19,32,8,21,5,30,24,44,15,44,22,31,28,43,16,18,0,7,0,0,0,0,0,23,0,0,-84,-90,-74,-80,-84,-91,-93,-91,-97,-90,-104,-81,-140,-134,-181,-182,-206,-202,-291,-299,-277,-145,-154,-151,-150,-143,-137,-137,-141,-141,-194,-92,-100,-123,-111,-100,-398,-398,-1135,-1080,-1129,-1069,-1121,-1116,-998,-916,-1669,-1521]} 1. e4 {[%emt 0:01:03]} e5 {[%emt 0:00:11]} 2. Nf3 {[%emt 0:00:19]} Nc6 {[%emt 0:00:06]} 3. Bc4 {[%emt 0:00:11]} Bc5 {[%emt 0:00:04]} 4. b4 {[%emt 0:00:21]} Bxb4 {[%emt 0:01:00]} 5. c3 {[%emt 0:00:09]} Be7 {[%emt 0:00:13]} 6. d4 {[%emt 0:01:35]} Na5 {[%emt 0:00:05]} 7. Bd3 {[%emt 0:00:40]} d6 {[%emt 0:01:16] C51: Evans Gambit: Declined and Accepted without 5...Ba5.} 8. dxe5 {[%emt 0:00:44]} dxe5 {[%emt 0:00:06]} 9. Nxe5 {[%emt 0:00:26]} Nf6 {[%emt 0:00:07] The position is equal.} 10. O-O {[%emt 0:00:33]} O-O {[%emt 0:00:28]} 11. Qc2 {[%emt 0:00:53]} Qd6 {[%emt 0:01:32]} 12. Nf3 {[%emt 0:01:08]} Nd7 {[%emt 0:01:30] [#] Prevents e5.} 13. Be3 $146 {[%emt 0:03:28]} ({Predecessor:} 13. Rd1 Ne5 14. Nxe5 Qxe5 15. f4 Bc5+ 16. Kh1 Qh5 17. Rf1 Bg4 18. e5 Rfd8 19. Ba3 {0-1 (41) Carbonell Sancho,M (2215)-Rakotomaharo,F (2475) Alicante 2022}) 13... Nc5 {[%emt 0:03:50]} 14. Bxc5 {[%emt 0:00:26]} (14. Be2 {is more complex.} Qg6 15. Nbd2 Bh3 16. Ne1) 14... Qxc5 {[%emt 0:00:05]} 15. Nbd2 {[%emt 0:00:50]} Nc6 {[%emt 0:04:25] Prevents e5.} 16. Nb3 {[%emt 0:00:15]} Qh5 {[%emt 0:01:43]} 17. Nbd4 {[%emt 0:00:13]} Nxd4 {[%emt 0:13:38]} 18. cxd4 {[%emt 0:04:08]} c6 {[%emt 0:00:06]} 19. Be2 {[%emt 0:32:52]} f6 {[%emt 0:21:34]} 20. Ne1 {[%emt 0:09:30]} Qg6 {[%emt 0:02:47]} 21. Bc4+ {[%emt 0:10:50]} Kh8 {[%emt 0:00:12]} 22. f4 {[%emt 0:00:27]} f5 {[%emt 0:23:33]} 23. e5 {[%emt 0:01:30]} Be6 {[%emt 0:00:15]} 24. Rf3 {[%emt 0:05:34]} Rad8 {[%emt 0:02:21]} 25. Rd1 {[%emt 0:03:22]} Bd5 {[%emt 0:00:39]} 26. Bxd5 {[%emt 0:09:59]} Rxd5 {[%emt 0:00:15]} 27. Rb3 {[%emt 0:00:20]} b6 {[%emt 0:01:54]} 28. Rc3 {[%emt 0:03:09]} c5 {[%emt 0:12:23]} 29. dxc5 {[%emt 0:01:04]} Bxc5+ {[%emt 0:00:04]} 30. Kh1 {[%emt 0:00:15]} Rxd1 {[%emt 0:00:20]} 31. Qxd1 {[%emt 0:00:04]} Qe6 {[%emt 0:00:04]} 32. a3 {[%emt 0:02:19]} h6 {[%emt 0:01:03]} 33. Rd3 {[%emt 0:01:30]} (33. h3 $11 {remains equal.}) 33... Qc4 $40 {[%emt 0:00:13][%mdl 128] White is in trouble.} 34. Qf3 {[%emt 0:03:50]} Qc1 {[%emt 0:01:38]} 35. Rd1 {[%emt 0:00:41]} Qxa3 {[%emt 0:00:33]} 36. Qxa3 {[%emt 0:02:51]} Bxa3 {[%emt 0:00:05][%mdl 4096] Endgame KRB-KRN} 37. Ra1 {[%emt 0:00:24]} Bb4 {[%emt 0:04:46] White must now prevent ...Bc3. Black is more active.} 38. Nd3 {[%emt 0:01:01]} Bc3 {[%emt 0:00:09]} 39. Rc1 {[%emt 0:00:31]} ({Wrong is} 39. Rxa7 $2 Rd8 40. g4 (40. Nf2 $2 Rd2 $19) 40... Rxd3 $19) (39. Ra3 $142 Ba5 40. h3) 39... Bd4 {[%emt 0:01:32]} 40. g3 {[%emt 0:00:33]} (40. h3 $17) 40... a5 $19 {[%emt 0:01:40]} 41. Rc6 {[%emt 0:06:07]} Rd8 {[%emt 0:08:09]} 42. e6 {[%emt 0:01:37]} (42. Kg2 $142) 42... Kg8 {[%emt 0:00:54]} 43. e7 {[%emt 0:07:08] [#]} Re8 {[%emt 0:00:20]} (43... Ra8 $1 $19 {Threatens to win with ...Kf7.} 44. Rd6 Bf6 45. Rxb6 Bxe7) 44. Rd6 $17 {[%emt 0:00:17]} Bf6 {[%emt 0:01:53]} 45. Rxb6 {[%emt 0:01:06]} Rxe7 {[%emt 0:00:09]} 46. Ra6 {[%emt 0:04:53] Against Ra7} Bc3 {[%emt 0:08:24]} 47. Rc6 {[%emt 0:03:09] Rc8+ is the strong threat.} Bd4 {[%emt 0:04:42]} 48. Rd6 {[%emt 0:00:21] [#]} Re4 {[%emt 0:03:11]} (48... Be3 $1 $19 {and Black stays clearly on top. Strongly threatening ...a4.} 49. Rd8+ Kh7) 49. Rd5 {[%emt 0:01:31][%csl LRa5,LRf5]} a4 {[%emt 0:00:05][%cal Ba5a4,Ba4a3,Ba3a2][%mdl 32]} 50. Ra5 {[%emt 0:01:57]} Re3 {[%emt 0:03:12]} 51. Ne5 {[%emt 0:00:27][%mdl 8192] This move loses the game for White.} (51. Nb4 $17) 51... a3 $19 {[%emt 0:00:52]} 52. Nc4 $2 {[%emt 0:00:37]} (52. Ra4) 52... Re1+ {[%emt 0:00:04] Black is clearly winning.} 53. Kg2 {[%emt 0:00:40]} Re2+ {[%emt 0:00:02]} 54. Kf1 {[%emt 0:01:06]} Rf2+ {[%emt 0:00:03]} 55. Ke1 {[%emt 0:00:06]} a2 {[%emt 0:00:04] Hoping for ...Bc3+.} 56. Nd2 {[%emt 0:00:14] [#]} Rxd2 $1 {[%emt 0:00:08][%mdl 512] Weighted Error Value: White=0.44/Black=0.10 (very precise)} 0-1

[Event "FRA-ch Teams Top 16-B 2022"]
[Site "Chartres"]
[Date "2022.06.10"]
[Round "2.20"]
[White "Burri, Quentin"]
[Black "Hutois, Mickael"]
[Result "1/2-1/2"]
[ECO "E20"]
[WhiteElo "2401"]
[BlackElo "2238"]
[Annotator "TA"]
[PlyCount "87"]
[EventDate "2022.06.09"]
[EventType "team-tourn"]
[EventCountry "FRA"]
[SourceTitle "playchess.com"]
[Source "ChessBase"]
[SourceQuality "1"]
[TimeControl "40/5400+30:1800+30"]

{[%evp 9,87,-6,0,-12,-6,0,24,19,26,20,40,23,6,0,0,-5,14,10,14,0,0,0,0,0,7,0,46,50,43,52,46,43,44,56,47,47,68,45,53,48,55,38,27,30,91,86,101,111,107,49,49,49,49,49,78,70,54,5,8,0,21,1,36,44,69,64,77,24,29,1,8,8,8,8,8,0,8,0,0,0]} 1. d4 {[%emt 0:00:04]} Nf6 {[%emt 0:00:06]} 2. c4 {[%emt 0:00:05]} e6 {[%emt 0:00:05]} 3. Nc3 {[%emt 0:00:06]} Bb4 {[%emt 0:00:05]} 4. Bd2 {[%emt 0:00:57]} c5 {[%emt 0:00:50]} 5. dxc5 {[%emt 0:00:32]} O-O {[%emt 0:00:22]} 6. Nf3 {[%emt 0:00:18] E20: Nimzo-Indian: 4 g3 and 4 f3.} Bxc5 {[%emt 0:00:20]} 7. g3 {[%emt 0:00:57]} b6 {[%emt 0:05:47]} 8. Bg2 {[%emt 0:02:00][%cal Of3d4] White has an edge.} Bb7 {[%emt 0:00:09]} 9. O-O {[%emt 0:00:21]} Nc6 {[%emt 0:00:08]} 10. Bf4 {[%emt 0:07:40]} Rc8 {[%emt 0:09:55]} 11. Rc1 {[%emt 0:13:40]} Na5 {[%emt 0:08:30] [#]} 12. b3 $146 {[%emt 1:09:50]} ({Predecessor:} 12. Nb5 d5 13. Ne5 a6 14. Na3 Qe7 15. cxd5 Nxd5 16. Nc2 Rfd8 17. Qe1 Bd6 18. Nd3 {0-1 (40) Saeed,I (2409)-Jumabayev,R (2658) Dubai 2021}) 12... d5 {[%emt 0:05:04]} 13. cxd5 {[%emt 0:00:00]} Nxd5 {[%emt 0:02:20]} 14. Nxd5 {[%emt 0:00:00]} Bxd5 {[%emt 0:00:58]} 15. Ne5 {[%emt 0:00:00]} Bxg2 {[%emt 0:02:08]} 16. Kxg2 {[%emt 0:00:00]} Qe7 {[%emt 0:02:24]} 17. Qd7 {[%emt 0:00:00][%cal Ob3b4] Threatens to win with b4!} f6 {[%emt 0:07:44] [#]} (17... Qe8 $11) 18. Rxc5 $1 $14 {[%emt 0:00:00]} Qxd7 {[%emt 0:00:05]} ({Less strong is} 18... Qxc5 19. Qxe6+ Kh8 20. Nf7+ Rxf7 21. Qxf7 Qc6+ 22. Kg1 $16) 19. Nxd7 {[%emt 0:00:00]} bxc5 {[%emt 0:00:05]} 20. Nxf8 {[%emt 0:00:00]} Kxf8 {[%emt 0:00:04][%mdl 4096] Endgame KRB-KRN} 21. Rc1 {[%emt 0:00:00][%cal Oc1c5]} Ke7 {[%emt 0:03:18]} 22. e4 {[%emt 0:00:00]} Nb7 {[%emt 0:09:36]} 23. Be3 {[%emt 0:00:00]} Kd6 {[%emt 0:04:04]} 24. h4 {[%emt 0:00:00]} a5 {[%emt 0:04:28]} 25. Rc4 {[%emt 0:00:00]} Kc6 {[%emt 0:00:37]} 26. g4 {[%emt 0:00:00]} Kb5 {[%emt 0:08:08]} (26... e5 $11 {remains equal.}) 27. e5 $16 {[%emt 0:00:00]} Kc6 {[%emt 0:00:22] [#]} 28. exf6 $1 {[%emt 0:00:00] White is more active.} gxf6 {[%emt 0:00:07]} 29. g5 {[%emt 0:00:00]} (29. Rf4 $16) 29... fxg5 $14 {[%emt 0:08:35]} 30. hxg5 {[%emt 0:00:00]} Kd5 {[%emt 0:01:41]} 31. Kf3 {[%emt 0:00:00]} Nd6 {[%emt 0:02:24]} 32. Ra4 {[%emt 0:00:00]} Ra8 {[%emt 0:01:55]} 33. Ke2 {[%emt 0:02:08]} (33. Bd2 $14 {deserves consideration.}) 33... Nf5 $11 {[%emt 0:03:30]} 34. Kd3 {[%emt 0:04:27]} e5 {[%emt 0:02:00]} 35. f4 {[%emt 0:00:40]} Nd4 {[%emt 0:06:49]} 36. fxe5 {[%emt 0:01:22][%cal Re3d4]} Nc6 {[%emt 0:00:18]} 37. e6 $1 {[%emt 0:02:09]} Re8 {[%emt 0:01:42]} 38. Bd2 {[%emt 0:01:30]} (38. Rh4 $16) 38... Rxe6 {[%emt 0:00:10]} 39. Bxa5 {[%emt 0:00:38]} (39. Rh4 $5 {[%cal Rh4h7]}) 39... Ne5+ {[%emt 0:01:08] The position is equal.} 40. Kc2 {[%emt 0:00:28]} Nf3 {[%emt 0:00:18]} 41. Rf4 {[%emt 0:30:35]} Nxg5 {[%emt 0:04:20]} 42. Kd3 {[%emt 0:00:00]} Ne4 {[%emt 0:07:02]} 43. Rf5+ {[%emt 0:00:00]} Re5 {[%emt 0:03:35]} 44. Rxe5+ {[%emt 0:00:00] Weighted Error Value: White=0.09 (flawless) /Black=0.09 (flawless)} 1/2-1/2

[Event "FRA-ch Teams Top 16-B 2022"]
[Site "Chartres"]
[Date "2022.06.10"]
[Round "2.21"]
[White "Real, Thibault"]
[Black "Terrieux, Kevin"]
[Result "0-1"]
[ECO "C14"]
[WhiteElo "2262"]
[BlackElo "2448"]
[Annotator "TA"]
[PlyCount "140"]
[EventDate "2022.06.09"]
[EventType "team-tourn"]
[EventCountry "FRA"]
[SourceTitle "playchess.com"]
[Source "ChessBase"]
[SourceQuality "1"]
[TimeControl "40/5400+30:1800+30"]

{[%evp 13,140,31,27,28,43,14,29,28,20,43,61,56,80,49,47,27,56,0,88,57,96,95,112,14,38,-73,-68,-78,-33,-163,-169,-142,-137,-215,-210,-200,-147,-134,-64,-91,-98,-93,-82,-44,-61,-132,-139,-146,-129,-136,-126,-101,-96,-204,-200,-199,0,0,0,-177,-83,-60,-70,-270,-70,-141,-142,-160,-39,-158,0,-166,-161,-668,0,-112,-52,-148,0,-75,-65,-160,-74,-110,0,-117,67,0,78,96,120,8,17,21,36,37,43,51,134,144,112,0,0,-8,0,-129,-134,-260,-255,-248,-194,-200,-212,-205,-220,-228,-221,-216,-206,-427,-418,-1971,-1929,-1658,-1637,-1106,-1151,-4727,-4614]} 1. e4 {[%emt 0:00:03][%cal Be2e4,Be4e5][%mdl 32]} e6 {[%emt 0:01:12]} 2. d4 {[%emt 0:00:09]} d5 {[%emt 0:00:06]} 3. Nc3 {[%emt 0:00:17]} Nf6 {[%emt 0:01:13]} 4. Bg5 {[%emt 0:00:21]} Be7 {[%emt 0:00:51]} 5. e5 {[%emt 0:00:10]} Nfd7 {[%emt 0:00:26]} 6. h4 {[%emt 0:00:05]} h6 {[%emt 0:00:12]} 7. Bxe7 {[%emt 0:00:09]} Qxe7 {[%emt 0:00:06]} 8. Qd2 {[%emt 0:00:12] C14: French: Classical System: 4 Bg5 Be7 main line.} O-O {[%emt 0:00:55]} 9. f4 {[%emt 0:00:08]} c5 {[%emt 0:00:25]} 10. Nf3 {[%emt 0:00:06] White has an edge.} Nc6 {[%emt 0:00:36]} 11. O-O-O {[%emt 0:00:08]} cxd4 {[%emt 0:16:47]} 12. Nxd4 {[%emt 0:00:42] [#]} Nc5 $146 {[%emt 0:02:15]} ({Predecessor:} 12... f6 13. exf6 Qxf6 14. g3 Nxd4 15. Qxd4 Qxd4 16. Rxd4 Nf6 17. Bd3 Bd7 18. Rg1 Bc6 {½-½ (40) Ma,Q (2613)-Zvjaginsev,V (2649) China 2014}) 13. g3 {[%emt 0:13:17]} Bd7 {[%emt 0:02:52]} 14. Bg2 {[%emt 0:00:46]} b5 {[%emt 0:15:18]} 15. g4 {[%emt 0:12:56]} (15. Ncxb5 $14 Nxd4 16. Nxd4) 15... Na4 {[%emt 0:12:15]} (15... Nxd4 $11 16. Qxd4 Rfc8) 16. Nce2 {[%emt 0:18:03]} (16. Ncxb5 $2 Rab8 17. Bf1 a6 $19) 16... Rfc8 {[%emt 0:15:29]} 17. g5 {[%emt 0:07:58]} h5 {[%emt 0:01:14]} 18. Rhe1 {[%emt 0:13:44]} (18. Nxc6 $16 Bxc6 19. Rhe1) 18... b4 {[%emt 0:06:43]} 19. Kb1 {[%emt 0:01:22]} (19. Nxc6 $14 Rxc6 20. Nd4) 19... Na5 $17 {[%emt 0:02:46]} 20. b3 {[%emt 0:03:22] Against Nc4} Nc3+ {[%emt 0:01:05]} 21. Ka1 {[%emt 0:05:52]} ({White must play} 21. Nxc3 $15 bxc3 22. Qc1) 21... Nxd1 $19 {[%emt 0:01:34]} 22. Qxd1 {[%emt 0:01:06]} Nc6 $1 {[%emt 0:00:11]} 23. Nxc6 {[%emt 0:00:57]} (23. f5 $17) 23... Rxc6 {[%emt 0:01:01]} 24. Nd4 {[%emt 0:01:39]} Rc7 {[%emt 0:00:52]} 25. Qxh5 {[%emt 0:03:40]} g6 {[%emt 0:04:08]} ({Black should play} 25... a5 $17 {Threatens to win with ...Qc5.} 26. g6 fxg6 27. Qxg6 Rf8) 26. Qd1 $1 $15 {[%emt 0:00:56]} a5 {[%emt 0:00:21]} 27. h5 {[%emt 0:02:05]} a4 $1 {[%emt 0:00:40] Strongly threatening ...Qc5.} 28. hxg6 {[%emt 0:00:46]} fxg6 {[%emt 0:02:03]} 29. Kb1 {[%emt 0:08:53]} (29. Qd3 $15 Qf7 30. Rf1) 29... axb3 $17 {[%emt 0:03:15]} 30. cxb3 {[%emt 0:00:05]} Qc5 {[%emt 0:00:42]} 31. Qd3 {[%emt 0:01:09]} Kg7 {[%emt 0:02:27]} (31... Kf8 32. Rh1 Kf7 33. Rh7+ Kf8 34. Rh1 $16) 32. Bh3 {[%emt 0:00:43]} Qb6 {[%emt 0:02:48] The board is on fire.} 33. Bg4 {[%emt 0:02:49]} (33. Qe3 $17 {might work better.} Qa6 34. Qd2) 33... Rc3 $19 {[%emt 0:00:49]} 34. Qd2 {[%emt 0:00:07]} Qa6 $2 {[%emt 0:01:36]} ({Better is} 34... Bb5 $19 {And now ...Bd3+ would win.} 35. Nxb5 (35. Nxe6+ $2 Kg8 $19) 35... Qxb5) 35. Be2 $36 {[%emt 0:01:41][%mdl 2048] White has good play.} Qb6 {[%emt 0:00:12]} (35... Qa7 $11) 36. Bg4 $19 {[%emt 0:00:05]} Rh8 {[%emt 0:00:18]} (36... Bb5 $19 {has better winning chances.} 37. Nxb5 (37. Nxe6+ $2 Kg8 $19) 37... Qxb5) 37. Rd1 {[%emt 0:00:42]} Kf7 {[%emt 0:01:29]} 38. Bf3 $2 {[%emt 0:00:30]} (38. Qg2 $1 $15) 38... Ke7 $2 {[%emt 0:00:13]} (38... Bb5 $19 39. Nxb5 Qxb5) 39. Qf2 {[%emt 0:00:41]} (39. f5 $15 Rh4 40. fxe6 Bxe6 41. Nxe6 Qxe6 42. Bxd5 Qf5+ 43. Kb2) 39... Qc5 $17 {[%emt 0:00:16] Hoping for ...Rc8.} 40. Be2 {[%emt 0:01:25]} Rc8 {[%emt 0:01:12]} ({Black should try} 40... Rhh3 $17 {[%cal Oc3b3] aiming for ...Rxb3+!} 41. Qg1 Ke8) 41. Qe1 {[%emt 0:02:54]} (41. Qg1 $15) 41... Rh8 {[%emt 0:02:09]} 42. Qf2 $1 {[%emt 0:02:06]} Rhh3 {[%emt 0:02:01][%cal Oc3b3] Inhibits Bd3.} 43. Bg4 $2 {[%emt 0:08:45] [#]} (43. Qg1) 43... Rh8 $2 {[%emt 0:13:55]} (43... Rxb3+ $3 $19 {[%mdl 512] and Black stays clearly on top.} 44. axb3 Rxb3+ 45. Ka2 (45. Ka1 $2 {is a self mate.} Qc3+ 46. Ka2 Ra3+ 47. Kb1 Ra1#) 45... Qa7+ 46. Kxb3 Qa3+ 47. Kc2 Qa2+ 48. Kd3 Qxf2) 44. Be2 $1 {[%emt 0:02:49]} Qc7 {[%emt 0:02:15]} (44... Kf7 $17 {...Rch3 is the strong threat.} 45. Bg4 Kg8) 45. Bf1 {[%emt 0:01:53] Inhibits Rch3.} (45. Bf3 $15) 45... Rc8 {[%emt 0:02:57]} (45... Rh1 $1 $17 {White must now prevent ...Rch3.} 46. Qd2 Qc5) 46. Qd2 {[%emt 0:02:17]} (46. Qe1 $1 $11 {keeps the balance.}) 46... Qc5 {[%emt 0:00:24]} 47. Ba6 {[%emt 0:02:29]} (47. Qb2 $15) 47... Ra8 {[%emt 0:02:10]} (47... Rh8 $142 $1 48. Bf1 Rh1) 48. Bf1 {[%emt 0:00:31]} Rf8 {[%emt 0:04:47]} (48... Rh8 $1 $17 49. Qg2 Be8) 49. Qf2 {[%emt 0:01:33]} (49. Qh2 $11) 49... Qc7 $2 {[%emt 0:01:48]} (49... Rc8 $17 {( -> ...Rc1+)} 50. Qd2 Rh8) 50. Qd2 {[%emt 0:00:07] Inhibits Rc1+.} (50. Qh2 $1 $14) 50... Kd8 {[%emt 0:00:45]} (50... Rh8 $11) 51. Bd3 $1 $16 {[%emt 0:00:44][%mdl 1024] White has strong compensation.} Rg8 {[%emt 0:01:18]} 52. Qh2 {[%emt 0:01:04]} (52. Ne2 $16) 52... Qb6 $1 $11 {[%emt 0:00:23]} 53. Bc2 {[%emt 0:03:17]} Qc5 {[%emt 0:01:21]} 54. Qh7 {[%emt 0:01:49][%csl LRg6,LRg8]} Qf8 {[%emt 0:00:30]} 55. Bxg6 {[%emt 0:00:54]} Qg7 {[%emt 0:00:38]} (55... Rh8 $1 $14 56. Qf7 Qxf7 57. Bxf7 Ke7) 56. Qxg7 $1 $16 {[%emt 0:01:45]} Rxg7 {[%emt 0:00:01]} 57. Bc2 {[%emt 0:01:05]} (57. Bd3 $16) 57... Rh3 $11 {[%emt 0:01:06]} 58. Rf1 {[%emt 0:02:03]} Ke7 {[%emt 0:00:17]} 59. Bd1 {[%emt 0:01:17]} (59. g6 $11 {remains equal.} Rh4 60. f5 $1 exf5 61. Nxf5+ Bxf5 62. Bxf5) 59... Rh4 $1 $17 {[%emt 0:00:39]} ({Of course not} 59... Rd3 $6 60. Nc2 $11) 60. Nc2 {[%emt 0:00:42] [#]} (60. Rf2 $17 {was necessary.}) 60... Bb5 $1 $19 {[%emt 0:00:08]} 61. Rf2 {[%emt 0:00:23]} Bd3 {[%emt 0:01:01]} 62. Kb2 {[%emt 0:00:04]} Bxc2 {[%emt 0:01:03]} 63. Bxc2 {[%emt 0:00:49][%mdl 4096] Endgame [#] KRR-KRB} Rf7 $1 {[%emt 0:00:02]} 64. f5 {[%emt 0:00:26]} exf5 {[%emt 0:00:13]} 65. g6 {[%emt 0:00:27]} Rf8 {[%emt 0:01:21]} 66. Bxf5 $2 {[%emt 0:00:43]} (66. g7 {was the only chance.} Rg8 67. Bxf5) 66... Rg4 {[%emt 0:00:14]} 67. Rf1 {[%emt 0:00:42]} (67. Bxg4 $142 Rxf2+ 68. Ka1) 67... Rg2+ {[%emt 0:00:09] Black is clearly winning.} 68. Kb1 {[%emt 0:00:16]} Rg5 {[%emt 0:00:30]} 69. g7 {[%emt 0:00:17]} Rxg7 {[%emt 0:00:08]} 70. Kc2 {[%emt 0:00:07]} Rgf7 {[%emt 0:00:06] Weighted Error Value: White=0.57/Black=0.45} 0-1

[Event "FRA-ch Teams Top 16-B 2022"]
[Site "Chartres"]
[Date "2022.06.10"]
[Round "2.22"]
[White "Riff, Jean-Noel"]
[Black "Le Pen, Steven"]
[Result "1-0"]
[ECO "B51"]
[WhiteElo "2444"]
[BlackElo "2090"]
[Annotator "TA"]
[PlyCount "53"]
[EventDate "2022.06.09"]
[EventType "team-tourn"]
[EventCountry "FRA"]
[SourceTitle "playchess.com"]
[Source "ChessBase"]
[SourceQuality "1"]
[TimeControl "40/5400+30:1800+30"]

{[%evp 15,53,36,41,35,65,60,81,79,116,110,120,101,105,80,163,162,158,151,137,158,184,188,287,216,231,220,509,517,525,286,272,256,266,264,332,269,446,424,395,398]} 1. e4 {[%emt 0:00:02]} c5 {[%emt 0:00:47]} 2. Nf3 {[%emt 0:00:08]} d6 {[%emt 0:00:05]} 3. Bb5+ {[%emt 0:00:03]} Nd7 {[%emt 0:00:28]} 4. O-O {[%emt 0:00:07]} Ngf6 {[%emt 0:00:31]} 5. Re1 {[%emt 0:00:05]} a6 {[%emt 0:00:30]} 6. Bf1 {[%emt 0:00:13]} b6 {[%emt 0:00:37]} 7. d4 {[%emt 0:00:10] 7.c4 is the hot move.} cxd4 {[%emt 0:00:06]} 8. Nxd4 {[%emt 0:00:05]} Bb7 {[%emt 0:00:43]} 9. c4 {[%emt 0:00:26] B51: Sicilian: Moscow Variation (3 Bb5+) without 3...Bd7.} Nxe4 {[%emt 0:23:57]} 10. f3 $1 {[%emt 0:00:21]} Nef6 {[%emt 0:03:57]} 11. Nf5 {[%emt 0:00:22][%csl Gd1][%cal Rf5d6] [#] White is more active. White is better.} e6 {[%emt 0:07:30]} 12. Nxd6+ {[%emt 0:00:32]} Bxd6 {[%emt 0:00:16]} 13. Qxd6 {[%emt 0:00:02]} Nc5 {[%emt 0:09:30] [#]} 14. Qg3 $146 {[%emt 0:06:24]} ({Predecessor:} 14. Qxd8+ Rxd8 15. Be3 O-O 16. Nc3 a5 17. a3 Bc6 18. b4 Ncd7 19. b5 Ba8 20. Na4 Rb8 21. Rad1 Rfd8 22. Bxb6 {1-0 (22) Oratovsky,M (2501)-Alonso Alvarez,A (2286) Gijon 2017}) 14... Qd4+ {[%emt 0:06:53]} (14... O-O $16) 15. Be3 $18 {[%emt 0:08:38]} Qxb2 {[%emt 0:02:00]} 16. Nd2 {[%emt 0:00:11]} O-O {[%emt 0:04:27]} 17. Rab1 {[%emt 0:04:30]} Qxa2 {[%emt 0:05:26]} 18. Rxb6 {[%emt 0:02:50]} Rfc8 {[%emt 0:10:42]} (18... Qa5 {might work better.} 19. Qd6 Nfd7) 19. Reb1 {[%emt 0:04:14] Threatens to win with Bxc5.} Bc6 {[%emt 0:03:11]} 20. Qd6 {[%emt 0:01:15]} ({Inferior is} 20. Bxc5 Qxd2 21. R6b2 Qh6 $11) 20... Ba4 {[%emt 0:10:00]} (20... Nb7 21. Rxb7 Bxb7) 21. Bxc5 {[%emt 0:01:50] [#] And now R6b2 would win.} Rxc5 {[%emt 0:04:13]} 22. Qxc5 {[%emt 0:01:37]} Qxd2 {[%emt 0:00:54]} 23. Rb8+ {[%emt 0:00:04]} Rxb8 {[%emt 0:00:08]} 24. Rxb8+ {[%emt 0:00:04]} Ne8 {[%emt 0:01:13]} 25. Qf2 {[%emt 0:07:00]} Qxf2+ {[%emt 0:01:21]} (25... Qf4) 26. Kxf2 {[%emt 0:00:03]} Kf8 {[%emt 0:00:18]} 27. c5 {[%emt 0:00:46] White took control after the opening.  Weighted Error Value: White=0.35/Black=0.53} 1-0